bitfinex/quotes_ETHUSD_20240927
["timestamp","ask_amount","ask_price","bid_price","bid_amount"]
[1727454458005,4.46544,2694.3,2693.6,7.08038053]
[1727454458203,4.46544,2694.3,2693.7,0.07423258]
[1727454458516,3.71198,2694.0,2693.4,4.01185053]
[1727454458702,3.71198,2694.0,2693.4,11.43731053]
[1727454458902,3.71198,2694.0,2693.5,3.71262]
[1727454459133,3.71198,2694.0,2693.4,7.72454053]
[1727454459302,3.71198,2694.0,2693.5,3.71264]
[1727454460042,3.71295,2693.3,2692.7,11.70763]
[1727454460344,3.71295,2693.3,2692.8,3.71347]
[1727454460502,3.7127,2693.5,2693.0,3.71327]
[1727454460699,3.71279,2693.4,2693.0,3.71327]
[1727454461206,3.71315,2693.2,2692.9,0.6439]
[1727454461442,3.71321,2693.1,2692.9,0.6439]
[1727454461743,3.71291,2693.3,2692.9,0.6439]
[1727454461945,3.71318,2693.2,2692.9,0.6439]
[1727454462820,3.71289,2693.4,2692.9,0.6439]
[1727454463020,3.71289,2693.4,2692.9,4.35729]
[1727454463499,3.71289,2693.4,2693.0,3.71331]
[1727454463699,3.71289,2693.4,2692.9,4.35729]
[1727454463700,3.7127,2693.5,2692.9,4.35729]
[1727454463949,3.71285,2693.4,2692.9,4.35729]
[1727454464854,3.7127,2693.5,2693.0,3.71326]
[1727454465143,3.71284,2693.4,2692.9,4.35736]
[1727454465303,3.71294,2693.3,2692.9,4.35736]
[1727454465634,3.71294,2693.3,2692.9,0.6439]
[1727454465951,3.71294,2693.3,2692.9,4.35736]
[1727454466857,4.50076,2693.7,2693.0,3.71325]
[1727454467021,3.71279,2693.4,2693.0,3.71325]
[1727454467417,3.71266,2693.5,2693.0,3.71325]
[1727454467960,3.71303,2693.3,2692.9,0.6439]
[1727454468115,3.71288,2693.4,2692.9,0.6439]
[1727454468316,3.71299,2693.3,2692.9,0.6439]
[1727454468542,3.71278,2693.4,2693.0,3.71331]
[1727454468955,7.42563,2693.4,2693.0,3.71331]
[1727454469129,3.7126,2693.6,2693.0,3.71331]
[1727454469467,3.52166762,2693.6,2693.2,0.6439]
[1727454469665,3.71274,2693.5,2693.2,0.6439]
[1727454470349,3.71272,2693.5,2693.2,0.6439]
[1727454470723,7.42546,2693.5,2693.2,0.6439]
[1727454471470,7.42546,2693.5,2692.6,11.06387]
[1727454471471,3.71302,2693.3,2692.9,4.3573]
[1727454472422,3.71302,2693.3,2692.4,10.08203053]
[1727454472423,3.71354,2692.9,2692.5,0.6439]
[1727454472626,3.71354,2692.9,2692.5,4.35789]
[1727454472961,3.71354,2692.9,2692.5,0.6439]
[1727454473859,3.71354,2692.9,2692.5,4.35791]
[1727454474085,3.71354,2692.9,2692.5,0.6439]
[1727454474267,3.71333,2693.0,2692.5,0.6439]
[1727454474435,3.71333,2693.0,2692.6,3.78808625]
[1727454474777,3.71333,2693.0,2692.5,4.35785]
[1727454474981,0.793,2693.3,2692.5,4.35785]
[1727454474982,3.71366,2692.8,2692.5,0.6439]
[1727454475281,3.71347,2692.9,2692.5,0.6439]
[1727454476552,7.42702,2692.9,2692.5,0.6439]
[1727454476786,3.71366,2692.8,2692.5,0.6439]
[1727454477139,3.71381,2692.7,2692.5,0.6439]
[1727454477448,4.54058,2692.9,2692.3,8.07226]
[1727454477647,3.71358,2692.9,2692.4,3.71409]
[1727454477852,3.71333,2693.0,2692.5,3.71393]
[1727454479881,3.71333,2693.0,2692.6,3.71382]
[1727454480259,3.7127,2693.5,2693.0,3.71326]
[1727454480590,3.7127,2693.5,2693.1,0.6439]
[1727454480946,3.70321461,2693.5,2693.1,0.6439]
[1727454481144,3.71291,2693.3,2693.1,0.6439]
[1727454481447,3.71291,2693.3,2692.9,4.35736]
[1727454481654,3.71278,2693.4,2692.9,4.35736]
[1727454481847,3.70321461,2693.5,2693.0,3.7133]
[1727454482789,3.70321461,2693.5,2693.1,3.71315]
[1727454483659,1.54065237,2693.7,2693.3,0.6439]
[1727454483857,5.64196159,2693.9,2693.3,0.6439]
[1727454483858,3.71217,2693.9,2693.4,3.36795053]
[1727454484092,1.54065237,2694.2,2693.8,3.36795053]
[1727454484265,0.1287156,2694.7,2694.6,3.71112]
[1727454484650,0.1287156,2694.7,2694.6,4.97734345]
[1727454484854,0.1287156,2694.7,2694.6,4.90502]
[1727454486259,0.1287156,2694.7,2694.6,0.6439]
[1727454486455,0.1287156,2694.7,2694.6,4.35502]
[1727454486917,0.1287156,2694.7,2694.6,0.6439]
[1727454487261,0.1287156,2694.7,2694.5,3.71126]
[1727454487457,0.1287156,2694.7,2694.6,3.71112]
[1727454488404,0.0787156,2694.7,2694.6,4.26112]
[1727454489510,0.0787156,2694.7,2694.6,7.97920706]
[1727454489700,0.0787156,2694.7,2694.6,7.90502]
[1727454498111,0.0787156,2694.7,2694.6,8.40580458]
[1727454498313,0.0787156,2694.7,2694.6,7.90502]
[1727454499725,3.70846,2696.6,2695.9,0.6439]
[1727454499907,3.70846,2696.6,2696.0,3.70919]
[1727454500226,3.70846,2696.6,2696.1,3.70905]
[1727454500386,0.8059,2697.1,2696.0,0.55]
[1727454500588,0.8059,2697.5,2696.8,0.55]
[1727454500795,3.70779,2697.1,2696.5,3.70842]
[1727454500994,3.70762,2697.2,2696.6,4.25833]
[1727454501910,3.7077,2697.1,2696.5,4.25847]
[1727454502216,3.7077,2697.1,2696.6,3.70837]
[1727454502519,3.7077,2697.1,2696.5,0.55]
[1727454502679,0.7879,2696.9,2696.5,0.55]
[1727454503189,0.7879,2696.9,2696.6,3.70826]
[1727454503393,0.1287156,2697.4,2696.6,3.70826]
[1727454503394,0.1287156,2697.4,2697.3,3.70741]
[1727454503596,0.1287156,2697.4,2697.3,4.25741]
[1727454504822,0.1287156,2697.4,2697.3,7.25741]
[1727454506121,0.1287156,2697.4,2697.3,6.70741]
[1727454506276,0.1287156,2697.4,2697.3,3.0]
[1727454506478,0.1287156,2697.4,2697.0,3.70774]
[1727454507783,0.1287156,2697.4,2697.1,0.55]
[1727454508103,0.1287156,2697.4,2696.9,4.25794]
[1727454509220,3.7079,2697.0,2696.4,3.70856]
[1727454509518,3.7079,2697.0,2696.3,3.70872]
[1727454509519,3.70799,2696.9,2696.3,3.70872]
[1727454510082,3.70817,2696.8,2696.2,0.6439]
[1727454510277,3.70827,2696.7,2696.1,7.41791]
[1727454510521,3.70804,2696.9,2695.9,0.6439]
[1727454510522,3.70861,2696.5,2695.9,0.6439]
[1727454510689,3.70861,2696.5,2695.9,4.35314]
[1727454510690,4.50571,2696.5,2695.9,4.35314]
[1727454510895,4.50571,2696.5,2696.0,3.70915]
[1727454511885,4.50571,2696.5,2696.1,0.55]
[1727454512532,0.79,2696.8,2696.4,3.70856]
[1727454512740,4.49776,2697.1,2696.5,4.25843]
[1727454512887,4.49776,2697.1,2696.5,0.55]
[1727454513223,4.49776,2697.1,2696.6,3.70834]
[1727454513722,4.49776,2697.1,2696.5,4.2585]
[1727454513723,3.70782,2697.0,2696.5,4.2585]
[1727454514329,4.49768,2697.1,2696.6,3.70837]
[1727454514820,0.79,2697.1,2696.6,3.70829]
[1727454515025,0.79,2697.1,2696.5,1.1939]
[1727454515197,3.70789,2697.0,2696.5,1.1939]
[1727454515521,3.70789,2697.0,2696.5,4.9024]
[1727454516424,3.70789,2697.0,2696.5,1.1939]
[1727454516585,3.70789,2697.0,2696.5,0.55]
[1727454516922,7.4158,2697.0,2696.5,0.55]
[1727454517094,3.70789,2697.0,2696.5,0.55]
[1727454517703,7.41584,2697.0,2696.5,0.55]
[1727454517917,3.70789,2697.0,2696.5,0.55]
[1727454518209,4.49776,2697.1,2696.5,4.25843]
[1727454518591,0.79,2697.1,2696.6,3.70835]
[1727454518924,3.70741,2697.3,2696.8,4.25807]
[1727454519108,0.8946156,2697.4,2697.0,3.70781]
[1727454519323,0.1287156,2697.4,2697.3,4.25741]
[1727454519624,0.1287156,2697.4,2697.3,0.55]
[1727454519807,0.1287156,2697.4,2697.3,4.25741]
[1727454521195,0.1287156,2697.4,2697.3,7.90131]
[1727454523446,0.1287156,2697.4,2697.3,7.35131]
[1727454524707,0.1287156,2697.4,2697.3,7.90131]
[1727454526057,0.1287156,2697.4,2697.3,7.25741]
[1727454526221,0.1287156,2697.4,2697.3,4.25741]
[1727454530022,0.1287156,2697.4,2697.3,12.03334173]
[1727454532675,3.70473,2699.3,2698.7,3.70542]
[1727454532956,7.40949,2699.3,2698.8,3.70534]
[1727454533121,7.40949,2699.3,2698.7,0.55]
[1727454533122,3.70483,2699.2,2698.7,4.25548]
[1727454533321,3.705,2699.1,2698.7,0.55]
[1727454533525,0.8329,2699.0,2698.7,0.55]
[1727454534549,0.8329,2699.4,2698.9,0.55]
[1727454535064,0.8329,2699.4,2699.1,0.55]
[1727454535268,0.8329,2699.4,2699.1,4.25492]
[1727454535430,0.8329,2699.4,2699.1,4.25485]
[1727454536297,0.8329,2699.4,2698.9,3.7051]
[1727454536428,0.8329,2699.4,2699.0,0.55]
[1727454536629,4.53744,2699.4,2699.0,0.55]
[1727454536873,4.53744,2699.4,2698.8,3.55]
[1727454536874,3.70468,2699.3,2698.8,3.55]
[1727454537028,3.70491,2699.2,2698.8,3.55]
[1727454537225,0.7806,2698.9,2697.9,0.6439]
[1727454537430,3.70442,2699.5,2698.9,3.70518]
[1727454537628,3.70442,2699.5,2699.0,3.70505]
[1727454537866,3.70432,2699.6,2699.0,3.70505]
[1727454537867,7.40866,2699.6,2699.0,3.70505]
[1727454538194,3.70441,2699.5,2699.0,3.70505]
[1727454538396,3.70441,2699.5,2699.1,3.70492]
[1727454538682,3.70389,2699.9,2699.4,3.70452]
[1727454539168,3.70389,2699.9,2699.3,3.70465]
[1727454539169,3.704,2699.8,2699.3,3.70465]
[1727454539467,3.70389,2699.9,2699.4,0.55]
[1727454539468,3.70387,2699.9,2699.4,0.55]
[1727454539782,3.70387,2699.9,2699.3,4.25459]
[1727454539783,3.70398,2699.8,2699.3,4.25459]
[1727454539932,3.70426,2699.6,2699.1,4.2549]
[1727454540132,3.70439,2699.5,2699.0,0.55]
[1727454540429,3.70459,2699.4,2699.0,0.55]
[1727454540860,3.70439,2699.5,2698.7,4.34932]
[1727454540861,3.70474,2699.3,2698.8,4.25533]
[1727454541167,3.70448,2699.5,2699.0,0.55]
[1727454541374,3.70448,2699.5,2699.0,4.25507]
[1727454542881,3.70447,2699.5,2699.0,4.25507]
[1727454543760,3.70425,2699.6,2699.1,3.70493]
[1727454544472,0.8209,2699.7,2699.3,3.70464]
[1727454544688,0.8209,2699.7,2699.5,3.70438]
[1727454544892,0.8209,2699.7,2699.4,4.25451]
[1727454545061,0.8234,2700.0,2699.6,3.70423]
[1727454545560,4.5271,2700.0,2699.6,3.70423]
[1727454546094,0.1287156,2700.1,2699.7,0.55]
[1727454546253,0.1287156,2700.1,2699.9,3.70377]
[1727454546588,0.1287156,2700.1,2700.0,3.7037]
[1727454546883,0.1287156,2700.1,2699.9,3.70382]
[1727454547043,0.1287156,2700.1,2699.9,7.40759]
[1727454547244,0.1287156,2700.1,2699.9,3.70377]
[1727454547443,0.1287156,2700.1,2700.0,0.55]
[1727454547748,0.1287156,2700.1,2700.0,4.2537]
[1727454548462,0.1287156,2700.1,2699.8,0.55]
[1727454548655,0.1287156,2700.1,2700.0,4.2537]
[1727454548849,0.1287156,2700.1,2700.0,0.55]
[1727454549089,0.1287156,2700.1,2699.8,0.55]
[1727454549245,0.1287156,2700.1,2699.8,4.25394]
[1727454549877,0.1287156,2700.1,2699.8,7.95784]
[1727454550055,0.1287156,2700.1,2699.9,3.70383]
[1727454550385,0.1287156,2700.1,2700.0,0.55]
[1727454550549,0.1287156,2700.1,2699.8,4.2539]
[1727454550751,0.1287156,2700.1,2699.8,7.95779]
[1727454551260,0.1287156,2700.1,2699.9,3.70376]
[1727454551480,0.1287156,2700.1,2700.0,0.55]
[1727454551943,0.1287156,2700.1,2700.0,3.7037]
[1727454552149,0.1287156,2700.1,2700.0,4.2537]
[1727454552549,0.1287156,2700.1,2700.0,4.97135098]
[1727454552850,0.1287156,2700.1,2700.0,4.8976]
[1727454553392,0.1287156,2700.1,2700.0,12.02963173]
[1727454556497,0.7612,2701.6,2701.3,4.25191]
[1727454556658,3.70016,2702.6,2701.3,4.25191]
[1727454556659,0.7612,2702.0,2701.5,0.55]
[1727454556859,0.7612,2702.0,2701.4,3.70178]
[1727454556860,0.7612,2702.0,2701.8,3.70119]
[1727454557091,0.7612,2702.0,2701.9,0.55]
[1727454557258,0.22122673,2702.7,2702.4,3.70033]
[1727454557259,0.1287156,2702.7,2702.4,3.70033]
[1727454557459,0.1287156,2702.7,2701.9,0.55]
[1727454557690,0.1287156,2702.7,2702.6,0.55]
[1727454558006,0.1287156,2702.7,2702.6,4.89404]
[1727454558156,0.1287156,2702.7,2702.6,6.70014]
[1727454558520,0.1287156,2702.7,2702.6,7.89404]
[1727454558860,0.1287156,2702.7,2702.6,4.25014]
[1727454559102,0.1287156,2702.7,2702.4,3.70041]
[1727454559308,0.1287156,2702.7,2702.2,4.34456]
[1727454559462,0.1287156,2702.7,2702.3,4.25054]
[1727454559669,0.1287156,2702.7,2702.3,0.55]
[1727454559866,0.1287156,2702.7,2702.5,0.55]
[1727454560178,0.1287156,2702.7,2701.6,7.83341173]
[1727454560179,0.7834,2702.6,2701.5,3.70151]
[1727454560360,0.0925122,2702.5,2701.1,0.6439]
[1727454560624,0.1287156,2702.7,2701.8,3.70111]
[1727454560923,0.1287156,2702.7,2701.9,0.6439]
[1727454561201,0.1287156,2702.7,2702.0,3.70096]
[1727454561379,0.1287156,2702.7,2702.1,3.70076]
[1727454561574,0.1287156,2702.7,2702.0,3.70096]
[1727454561774,0.1287156,2702.7,2702.1,0.55]
[1727454562013,0.1287156,2702.7,2701.8,6.70122]
[1727454562163,0.1287156,2702.7,2701.9,0.55]
[1727454562504,0.1287156,2702.7,2701.9,4.25108]
[1727454563075,0.1287156,2702.7,2702.2,0.55]
[1727454563578,0.7982,2702.6,2702.1,0.55]
[1727454565281,0.1287156,2702.7,2702.3,3.70054]
[1727454565974,0.1287156,2702.7,2702.4,0.55]
[1727454566386,0.1287156,2702.7,2702.5,0.55]
[1727454566804,0.1287156,2702.7,2702.4,0.55]
[1727454568307,0.1287156,2702.7,2702.4,4.25039]
[1727454568515,0.1287156,2702.7,2702.4,0.55]
[1727454569277,0.1287156,2702.7,2702.4,4.25039]
[1727454569809,0.1287156,2702.7,2702.6,4.25014]
[1727454570020,0.1287156,2702.7,2702.6,7.25014]
[1727454570374,0.1287156,2702.7,2702.6,7.32367301]
[1727454570608,0.1287156,2702.7,2702.6,7.25014]
[1727454571514,0.1287156,2702.7,2702.6,7.89404]
[1727454572474,0.79,2704.3,2703.9,3.69828]
[1727454573010,0.79,2704.3,2704.0,0.55]
[1727454573226,5.24803698,2704.4,2704.0,0.55]
[1727454573227,5.24803698,2704.4,2704.1,3.69799]
[1727454573513,5.24803698,2704.4,2704.3,7.89171]
[1727454574275,0.004,2705.0,2704.3,7.89171]
[1727454574276,0.004,2705.0,2704.6,7.2474]
[1727454574481,0.004,2705.0,2704.6,12.02333173]
[1727454574880,0.004,2705.0,2704.6,7.8913]
[1727454576057,0.004,2705.0,2704.6,12.02333173]
[1727454576560,0.004,2705.0,2704.6,7.8913]
[1727454577927,0.20761041,2704.7,2704.6,7.8913]
[1727454579220,0.20761041,2704.7,2704.6,7.3413]
[1727454581094,0.20761041,2704.7,2704.6,7.2474]
[1727454581490,0.20761041,2704.7,2704.6,4.2474]
[1727454581677,0.20761041,2704.7,2704.6,7.2474]
[1727454583220,0.20761041,2704.7,2704.6,7.8913]
[1727454584394,0.20761041,2704.7,2704.6,7.2474]
[1727454586598,0.20761041,2704.7,2704.6,7.8913]
[1727454590109,0.20761041,2704.7,2704.6,7.3413]
[1727454590606,0.20761041,2704.7,2704.6,12.15559105]
[1727454591189,0.20761041,2704.7,2704.6,12.70559105]
[1727454596220,0.004,2705.0,2704.9,4.34089]
[1727454596419,0.1337156,2705.4,2705.3,4.24644]
[1727454596593,0.1337156,2705.4,2705.3,8.65773632]
[1727454598124,0.005,2706.0,2705.9,3.69562]
[1727454598282,0.7196,2706.3,2706.0,3.6954]
[1727454598480,0.7196,2706.3,2706.1,3.69535]
[1727454598792,0.7196,2706.3,2706.1,3.69527]
[1727454599007,0.7196,2706.3,2706.1,7.39055]
[1727454599321,0.7196,2706.3,2706.1,7.39054]
[1727454599532,0.7196,2706.3,2706.0,3.69547]
[1727454600188,0.7196,2706.3,2706.1,3.69533]
[1727454600494,3.69545,2706.1,2705.5,3.69607]
[1727454600701,3.69545,2706.1,2705.6,3.69592]
[1727454600899,4.08174218,2706.4,2705.8,3.69563]
[1727454601211,4.08174218,2706.4,2706.0,3.69547]
[1727454601411,4.08174218,2706.4,2705.8,3.69563]
[1727454601412,0.7669,2706.3,2705.8,3.69563]
[1727454601929,0.7669,2706.3,2706.0,3.69539]
[1727454602296,0.7669,2706.3,2705.6,0.55]
[1727454602511,0.7669,2706.3,2706.1,3.69527]
[1727454602926,0.7669,2706.3,2706.2,3.69521]
[1727454603633,0.38670218,2706.4,2706.2,3.69521]
[1727454603788,0.7958,2707.3,2706.9,3.69426]
[1727454603985,0.7909,2707.5,2706.9,3.69426]
[1727454605043,0.7909,2707.5,2706.5,4.41129632]
[1727454605044,4.48434,2707.5,2706.5,4.41129632]
[1727454605245,3.69339,2707.6,2706.4,3.69488]
[1727454605246,0.8021,2707.6,2706.4,0.6789]
[1727454605404,0.8021,2706.9,2706.5,8.10601632]
[1727454605604,0.8021,2706.9,2706.5,4.41129632]
[1727454605944,0.8021,2706.9,2706.1,4.41129632]
[1727454606148,4.49637,2706.9,2706.1,4.41129632]
[1727454606347,3.69476,2706.6,2705.7,4.41129632]
[1727454606549,0.8322,2706.4,2705.6,3.696]
[1727454606750,0.8322,2706.4,2705.3,4.41129632]
[1727454607044,0.8322,2706.4,2705.7,8.10719632]
[1727454607241,0.8322,2706.4,2705.5,3.69606]
[1727454607410,0.8322,2706.4,2705.3,8.10763632]
[1727454607411,4.5274,2706.3,2705.3,8.10763632]
[1727454607599,0.8322,2706.3,2705.3,8.10763632]
[1727454607824,4.52737,2706.3,2705.3,8.10763632]
[1727454608030,0.793,2706.2,2705.3,11.80399632]
[1727454608225,0.793,2706.2,2705.3,8.10763632]
[1727454608433,0.793,2706.2,2705.9,3.69553]
[1727454608638,0.793,2706.2,2705.6,3.69592]
[1727454608839,0.793,2706.2,2705.5,3.69607]
[1727454609041,0.793,2706.2,2705.3,4.41129632]
[1727454609042,0.793,2706.2,2705.7,3.6958]
[1727454609247,0.793,2706.2,2705.8,3.69571]
[1727454609601,0.793,2706.2,2705.7,7.39161]
[1727454609809,0.793,2706.2,2705.7,3.6958]
[1727454610236,0.793,2706.2,2705.8,3.69572]
[1727454611071,0.7547,2705.8,2705.3,3.69636]
[1727454611382,0.7547,2705.8,2705.1,3.69664]
[1727454611383,0.7547,2705.8,2705.2,3.69658]
[1727454611531,0.7547,2705.8,2705.1,3.69664]
[1727454611532,3.69596,2705.7,2705.1,3.69664]
[1727454611729,4.45062,2705.7,2704.9,8.10819632]
[1727454611940,4.45062,2705.7,2705.1,3.69667]
[1727454612566,0.7547,2705.7,2705.1,3.69667]
[1727454612771,4.45061,2705.7,2705.1,3.69667]
[1727454612974,8.10572632,2706.8,2704.9,8.10820632]
[1727454612975,0.7921,2705.5,2704.9,3.69691]
[1727454613179,0.7921,2705.2,2704.5,8.10871632]
[1727454613388,3.69525,2706.2,2704.0,3.69813]
[1727454613389,3.69728,2704.7,2704.0,3.69813]
[1727454613584,3.69728,2704.7,2703.4,0.43107903]
[1727454613585,0.7921,2704.4,2703.8,3.69841]
[1727454613793,0.7921,2704.4,2703.3,0.6789]
[1727454613794,0.7921,2704.4,2703.5,4.41129632]
[1727454614081,0.7921,2704.4,2704.3,3.69781]
[1727454614291,0.7921,2705.2,2704.6,3.69733]
[1727454614582,0.7921,2705.2,2704.5,3.69745]
[1727454614753,7.46129632,2706.4,2704.3,3.69773]
[1727454614754,3.697,2704.9,2704.3,3.69773]
[1727454614960,0.8157,2705.0,2703.9,4.41129632]
[1727454615141,0.8157,2705.0,2704.7,3.69717]
[1727454615483,0.8157,2705.0,2704.6,3.69732]
[1727454615686,3.6954,2706.1,2704.0,3.69817]
[1727454615687,3.69728,2704.7,2704.0,3.69817]
[1727454615892,0.8148,2704.6,2703.9,4.41129632]
[1727454616191,0.8148,2704.6,2704.2,3.69793]
[1727454616351,0.8148,2704.6,2704.1,3.69808]
[1727454616547,0.8148,2704.5,2704.0,3.6981]
[1727454616758,0.8148,2704.5,2704.2,3.69794]
[1727454616977,0.8148,2704.5,2704.0,3.69815]
[1727454617183,0.8148,2704.5,2704.1,3.69806]
[1727454617751,0.8277,2704.3,2703.8,3.6984]
[1727454617952,0.8277,2704.3,2703.7,3.69863]
[1727454617953,0.8277,2704.2,2703.7,3.69863]
[1727454618157,0.8277,2704.2,2703.7,3.69854]
[1727454619373,0.8277,2704.2,2703.4,3.55]
[1727454619701,0.8277,2704.2,2703.4,0.55]
[1727454619855,0.8277,2704.2,2704.1,3.69808]
[1727454620920,0.8138,2705.0,2704.5,3.69745]
[1727454621116,0.8138,2705.0,2704.8,3.69712]
[1727454621422,0.8138,2705.0,2704.6,3.69732]
[1727454621786,0.8138,2705.0,2704.4,3.69762]
[1727454621987,0.8138,2705.0,2704.9,3.69699]
[1727454622415,0.8138,2705.0,2704.8,3.69712]
[1727454622613,3.69568,2705.9,2704.6,3.69732]
[1727454622614,0.763,2705.5,2705.0,3.69674]
[1727454622798,4.45858,2706.0,2705.4,3.69626]
[1727454623000,4.45858,2706.0,2705.5,3.69615]
[1727454623336,3.69578,2705.8,2705.2,3.69649]
[1727454623536,0.763,2705.7,2705.2,7.39299]
[1727454623845,0.763,2705.7,2705.3,3.69642]
[1727454624013,0.763,2705.7,2704.9,3.0]
[1727454624206,0.763,2705.6,2705.0,3.69677]
[1727454624396,4.45913,2705.6,2705.0,3.69677]
[1727454625035,4.45913,2705.6,2705.0,7.39354]
[1727454625397,4.45913,2705.6,2705.0,3.69677]
[1727454625629,3.69618,2705.5,2705.0,3.69677]
[1727454626134,0.7567,2705.4,2705.0,3.69677]
[1727454626337,0.7567,2705.4,2704.9,3.0]
[1727454626511,0.76215109,2706.2,2704.6,3.69733]
[1727454626512,3.69685,2705.1,2704.6,3.69733]
[1727454626699,0.7567,2705.0,2704.6,3.69733]
[1727454627107,4.45357,2705.0,2704.4,3.69758]
[1727454627343,4.45357,2705.0,2704.2,0.6789]
[1727454627344,0.7567,2705.0,2704.2,0.6789]
[1727454627546,0.7567,2705.0,2704.7,3.69718]
[1727454627910,0.7567,2705.0,2704.8,3.6971]
[1727454628106,0.7567,2705.0,2704.1,4.81759544]
[1727454628107,0.7567,2705.0,2704.9,3.69699]
[1727454630047,0.7728,2705.7,2705.5,3.69616]
[1727454630226,0.7728,2705.7,2705.6,3.69603]
[1727454631170,0.7728,2705.7,2705.5,3.69616]
[1727454631385,0.7728,2705.7,2705.5,7.39225]
[1727454631745,0.7728,2705.7,2705.5,3.69609]
[1727454632627,0.7728,2705.6,2705.1,3.69661]
[1727454632873,0.7728,2705.6,2705.0,3.69678]
[1727454633164,0.7728,2705.6,2705.5,3.69617]
[1727454633350,4.46888,2705.6,2705.1,3.69662]
[1727454633554,0.8276,2705.5,2705.1,3.69662]
[1727454633754,0.8276,2705.5,2704.9,3.6969]
[1727454633980,0.8276,2705.4,2704.9,3.6969]
[1727454634282,3.69624,2705.5,2704.5,3.69746]
[1727454634283,3.69695,2705.0,2704.5,3.69746]
[1727454634441,0.771,2704.6,2704.3,3.69773]
[1727454634647,0.771,2704.6,2703.7,4.81759544]
[1727454634648,4.4684,2704.6,2704.1,3.69798]
[1727454634853,4.4684,2704.6,2702.8,1.13674731]
[1727454634854,3.69782,2704.3,2703.8,3.69847]
[1727454635175,0.758,2704.4,2704.3,3.69781]
[1727454636019,0.758,2704.9,2704.5,3.69752]
[1727454636369,0.758,2704.9,2704.3,3.69781]
[1727454636370,3.69714,2704.8,2704.3,3.69773]
[1727454637081,0.79,2704.5,2704.0,3.69819]
[1727454637384,0.79,2704.5,2703.8,3.69841]
[1727454637385,0.79,2704.2,2703.8,3.69841]
[1727454637697,0.79,2704.2,2704.0,3.69815]
[1727454637901,0.79,2704.2,2704.1,3.69808]
[1727454638102,0.79,2704.2,2704.0,3.69815]
[1727454638309,0.79,2704.2,2703.8,3.69841]
[1727454638873,0.79,2704.2,2703.8,3.69843]
[1727454639225,0.79,2704.2,2704.0,3.69822]
[1727454639424,0.7802,2704.7,2704.2,3.69783]
[1727454639628,0.7802,2704.7,2704.4,3.69765]
[1727454639978,0.7802,2704.7,2704.2,3.69783]
[1727454640392,0.7802,2704.7,2704.3,3.6978]
[1727454641527,0.7802,2704.7,2703.9,3.69833]
[1727454641703,0.7802,2704.7,2704.4,3.69766]
[1727454642227,0.7802,2704.7,2704.2,3.69785]
[1727454642432,0.7802,2704.7,2704.0,3.69813]
[1727454642590,3.69741,2704.6,2704.1,3.69807]
[1727454643221,4.47747,2704.7,2704.1,3.69807]
[1727454643888,3.69744,2704.6,2704.1,3.69807]
[1727454644917,0.8024,2704.5,2704.1,3.69807]
[1727454645104,0.8024,2704.5,2704.1,3.69802]
[1727454645428,0.8024,2704.5,2704.2,3.69795]
[1727454646223,0.8024,2704.5,2703.7,4.41905295]
[1727454646428,3.69787,2704.3,2703.7,11.81608295]
[1727454646728,3.69776,2704.4,2703.7,3.6985]
[1727454646729,0.7656,2704.2,2703.7,3.6985]
[1727454646932,0.7656,2704.2,2703.3,4.41905295]
[1727454647244,1.14322664,2705.0,2703.3,4.41905295]
[1727454647245,0.8033,2704.8,2704.5,3.69748]
[1727454647619,0.8033,2704.8,2704.1,3.69801]
[1727454647620,3.69745,2704.6,2704.1,3.69801]
[1727454647803,0.7694,2704.5,2704.1,3.69801]
[1727454648003,0.7694,2704.5,2704.2,3.69786]
[1727454648349,0.7694,2704.5,2704.4,3.69767]
[1727454648547,0.7694,2704.5,2704.3,7.39542]
[1727454648748,0.7694,2704.5,2704.3,3.69769]
[1727454649122,0.7694,2704.5,2704.1,3.698]
[1727454649322,0.7694,2704.5,2703.7,11.11762295]
[1727454649323,0.7694,2704.5,2704.0,3.69813]
[1727454649560,0.7694,2704.5,2704.1,3.69804]
[1727454650605,0.7694,2704.5,2704.2,3.69793]
[1727454650806,0.7694,2704.5,2704.2,3.69792]
[1727454651059,0.7694,2704.5,2704.4,3.69767]
[1727454651873,0.7694,2704.5,2704.3,7.39554]
[1727454652095,0.7694,2704.5,2704.4,3.69767]
[1727454653303,0.7694,2704.5,2704.3,3.6978]
[1727454653890,0.7694,2704.5,2704.1,3.69796]
[1727454654090,0.7694,2704.5,2704.3,3.69779]
[1727454655113,0.7694,2704.5,2704.1,7.39594]
[1727454655776,0.7694,2704.5,2704.2,3.69793]
[1727454656508,4.46694,2704.5,2704.0,3.69814]
[1727454656807,4.46694,2704.5,2704.1,3.69801]
[1727454656808,0.7694,2704.5,2704.1,3.69801]
[1727454656992,3.69783,2704.3,2703.8,3.6984]
[1727454657195,0.8224,2704.2,2703.8,3.6984]
[1727454658421,0.8224,2704.2,2703.6,3.69868]
[1727454658422,3.69815,2704.1,2703.6,3.69868]
[1727454658612,0.8224,2704.2,2703.1,3.69939]
[1727454658613,0.7784,2703.8,2703.1,3.69939]
[1727454658768,3.69884,2703.6,2703.1,3.69939]
[1727454658969,4.47748,2703.4,2703.0,3.69948]
[1727454659167,0.7784,2703.4,2702.8,3.69977]
[1727454659364,0.76215109,2703.6,2702.6,3.70008]
[1727454659365,0.7652,2703.1,2702.6,3.70008]
[1727454659604,4.46478,2703.1,2702.7,3.7]
[1727454659921,4.46478,2703.1,2702.7,3.69999]
[1727454659922,0.7652,2703.1,2702.7,3.69999]
[1727454660206,0.7652,2703.1,2702.7,8.11892295]